fUST/lending_fUST_20250709
["ID","MTS","AMOUNT","RATE_DAILY","PERIOD"]
[370567932,1752065161303,-824.51,0.00021917,2]
[370567933,1752065161328,-491.84,0.00021917,2]
[370567934,1752065161351,-460.0,0.00021917,2]
[370567935,1752065161372,-151.0,0.00021918,2]
[370567936,1752065161392,-151.0,0.00021918,2]
[370567937,1752065161414,-150.0,0.00021918,2]
[370567938,1752065161435,-500.0,0.00021918,2]
[370567939,1752065161457,-500.0,0.00021918,2]
[370567940,1752065161481,-500.0,0.00021918,2]
[370567941,1752065161503,-500.0,0.00021918,2]
[370567942,1752065161525,-500.0,0.00021918,2]
[370567943,1752065161546,-500.0,0.00021918,2]
[370567944,1752065161568,-500.0,0.00021918,2]
[370567945,1752065161589,-500.0,0.00021918,2]
[370567946,1752065161610,-500.0,0.00021918,2]
[370567947,1752065161631,-500.0,0.00021918,2]
[370567948,1752065161653,-500.0,0.00021918,2]
[370567949,1752065161674,-181.51070923,0.00021918,2]
[370567950,1752065161695,-500.0,0.00021918,2]
[370567951,1752065161717,-500.0,0.00021918,2]
[370567952,1752065161739,-500.0,0.00021918,2]
[370567953,1752065161760,-500.0,0.00021918,2]
[370567954,1752065161781,-500.0,0.00021918,2]
[370567955,1752065161802,-500.0,0.00021918,2]
[370567956,1752065161824,-534.56031257,0.00021918,2]
[370567957,1752065161844,-534.56031257,0.00021918,2]
[370567958,1752065161866,-534.56031257,0.00021918,2]
[370567959,1752065161889,-534.56031257,0.00021918,2]
[370567960,1752065161911,-534.56031257,0.00021918,2]
[370567961,1752065161932,-534.56031257,0.00021918,2]
[370567962,1752065161953,-534.56031257,0.00021918,2]
[370567963,1752065161975,-534.56031257,0.00021918,2]
[370567964,1752065161998,-534.56031257,0.00021918,2]
[370567965,1752065162019,-534.56031257,0.00021918,2]
[370567966,1752065162041,-620.73618754,0.00021918,2]
[370567967,1752065162067,-1409.54205754,0.00021934,6]
[370567968,1752065162089,-976.561,0.00021949,2]
[370567969,1752065162111,-157.682289,0.00021952,2]
[370567970,1752065162133,-151.347018,0.00021969,7]
[370567971,1752065162154,-1000.0,0.0002198,2]
[370567972,1752065162175,-20601.63768359,0.00022,2]
[370567973,1752065162195,-352.33339072,0.00022,2]
[370567974,1752065162219,-14487.78541622,0.00022,2]
[370567975,1752065174835,250.0,0.000183,30]
[370567976,1752065175307,250.0,0.000163,30]
[370567977,1752065175738,250.0,0.000143,30]
[370567978,1752065176273,250.0,0.000123,30]
[370567979,1752065176709,250.0,0.000103,30]
[370567980,1752065177111,250.0,8.3e-05,30]
[370567981,1752065177531,250.0,6.3e-05,30]
[370567982,1752065177817,250.0,4.3e-05,30]
[370567983,1752065178234,250.0,2.3e-05,30]
[370567984,1752065178779,250.0,3e-06,30]
[370567986,1752065232085,-300.0,0.00019177,2]
[370567987,1752065232107,-1115.67,0.00019178,2]
[370567988,1752065232130,-460.0,0.00019178,2]
[370567989,1752065232155,-25764.06,0.00019178,2]
[370567990,1752065232180,-460.0,0.00019178,2]
[370567991,1752065232202,-460.0,0.00019178,2]
[370567992,1752065232224,-1115.67,0.00019452,2]
[370567993,1752065232250,-460.0,0.00019452,2]
[370567994,1752065232274,-25764.06,0.00019452,2]
[370567995,1752065232296,-460.0,0.00019452,2]
[370567996,1752065232318,-460.0,0.00019452,2]
[370567997,1752065232342,-1115.67,0.00019726,2]
[370567998,1752065232370,-460.0,0.00019726,2]
[370567999,1752065232393,-25764.06,0.00019726,2]
[370568000,1752065232418,-460.0,0.00019726,2]
[370568001,1752065232440,-460.0,0.00019726,2]
[370568002,1752065232462,-1115.67,0.0002,2]
[370568003,1752065232485,-460.0,0.0002,2]
[370568004,1752065232661,-6418.634762,0.0002,2]
[370568005,1752065233087,-19345.425238,0.0002,2]
[370568006,1752065233109,-460.0,0.0002,2]
[370568007,1752065233131,-460.0,0.0002,2]
[370568008,1752065233152,-1115.67,0.00020273,2]
[370568009,1752065233178,-460.0,0.00020273,2]
[370568010,1752065233202,-25764.06,0.00020273,2]
[370568011,1752065233224,-460.0,0.00020273,2]
[370568012,1752065233245,-460.0,0.00020273,2]
[370568013,1752065233266,-250.0,0.000203,30]
[370568014,1752065233289,-1115.67,0.00020547,2]
[370568015,1752065233310,-460.0,0.00020547,2]
[370568016,1752065233333,-25764.06,0.00020547,2]
[370568017,1752065233357,-460.0,0.00020547,2]
[370568018,1752065233383,-460.0,0.00020547,2]
[370568019,1752065233404,-1115.67,0.00020821,2]
[370568020,1752065233426,-460.0,0.00020821,2]
[370568021,1752065233451,-25764.06,0.00020821,2]
[370568022,1752065233473,-460.0,0.00020821,2]
[370568023,1752065233496,-417.4406508,0.00020821,2]
[370568024,1752065233518,-420.0,0.00020899,2]
[370568025,1752065233541,-500.0,0.00021069,2]
[370568026,1752065233561,-500.0,0.00021069,2]
[370568027,1752065233581,-500.0,0.00021069,2]
[370568028,1752065233602,-230.53906051,0.00021069,2]
[370568029,1752065233623,-215.27775528,0.00021069,2]
[370568030,1752065233643,-837.99933892,0.00021069,2]
[370568031,1752065233664,-214.14293035,0.00021069,2]
[370568032,1752065233685,-160.0,0.00021069,2]
[370568033,1752065233706,-160.0,0.00021069,2]
[370568034,1752065233726,-848.55005627,0.00021069,2]
[370568035,1752065233748,-12589.12013084,0.00021069,2]
[370568036,1752065233768,-1115.67,0.00021095,2]
[370568037,1752065233792,-536.70814948,0.00021095,2]
[370568038,1752065233817,-2781.32328755,0.00021095,2]
[370568039,1752065235083,-22982.73671245,0.00021095,2]
[370568040,1752065235105,-460.0,0.00021095,2]
[370568041,1752065235125,-500.0,0.00021269,2]
[370568042,1752065235146,-500.0,0.00021269,2]
[370568043,1752065235166,-500.0,0.00021269,2]
[370568044,1752065235187,-500.0,0.00021269,2]
[370568045,1752065235208,-500.0,0.00021269,2]
[370568046,1752065235227,-164.26806508,0.00021269,2]
[370568047,1752065235248,-1115.67,0.00021369,2]
[370568048,1752065235271,-25764.06,0.00021369,2]
[370568049,1752065235294,-460.0,0.00021369,2]
[370568050,1752065235315,-500.0,0.00021617,2]
[370568051,1752065235335,-162.808561,0.00021641,4]
[370568052,1752065235357,-1115.67,0.00021643,2]
[370568053,1752065235381,-25764.06,0.00021643,2]
[370568054,1752065235403,-460.0,0.00021643,2]
[370568055,1752065235423,-160.66728236,0.000217,2]
[370568056,1752065235451,-1080.6489108,0.000219,6]
[370568057,1752065235472,-1115.67,0.00021917,2]
[370568058,1752065235494,-25764.06,0.00021917,2]
[370568059,1752065235516,-460.0,0.00021917,2]
[370568060,1752065235538,-2153.0,0.00021968,2]
[370568061,1752065235558,-684.067,0.00021968,2]
[370568062,1752065235578,-500.0,0.00021973,2]
[370568063,1752065235598,-4533.54,0.0002199,10]
[370568064,1752065235618,-3777.95,0.0002199,10]
[370568065,1752065235640,-500.0,0.00021999,2]
[370568066,1752065235663,-500.0,0.00021999,2]
[370568067,1752065235683,-500.0,0.00021999,2]
[370568068,1752065235708,-500.0,0.00021999,2]
[370568069,1752065235737,-501.87945333,0.00021999,2]
[370568070,1752065235768,-500.0,0.00021999,2]
[370568071,1752065235797,-500.0,0.00021999,2]
[370568072,1752065235824,-500.0,0.00021999,2]
[370568073,1752065235852,-500.0,0.00021999,2]
[370568074,1752065235882,-374.06369687,0.00021999,2]
[370568075,1752065235911,-500.0,0.00021999,2]
[370568076,1752065235937,-500.0,0.00021999,2]
[370568077,1752065235966,-500.0,0.00021999,2]
[370568078,1752065235994,-500.0,0.00021999,2]
[370568079,1752065236021,-500.0,0.00021999,2]
[370568080,1752065236049,-500.0,0.00021999,2]
[370568081,1752065236079,-500.0,0.00021999,2]
[370568082,1752065236106,-500.0,0.00021999,2]
[370568083,1752065236133,-500.0,0.00021999,2]
[370568084,1752065236159,-500.0,0.00021999,2]
[370568085,1752065236182,-500.0,0.00021999,2]
[370568086,1752065236211,-500.0,0.00021999,2]
[370568087,1752065236239,-500.0,0.00021999,2]
[370568088,1752065236268,-500.0,0.00021999,2]
[370568089,1752065236295,-500.0,0.00021999,2]
[370568090,1752065236328,-500.0,0.00021999,2]
[370568091,1752065236355,-500.0,0.00021999,2]
[370568092,1752065236385,-837.15380458,0.00021999,2]
[370568093,1752065236413,-837.15380458,0.00021999,2]
[370568094,1752065236437,-500.0,0.00021999,2]
[370568095,1752065236469,-837.15380458,0.00021999,2]
[370568096,1752065236493,-500.0,0.00021999,2]
[370568097,1752065236519,-837.15380458,0.00021999,2]
[370568098,1752065236549,-837.15380458,0.00021999,2]
[370568099,1752065236578,-500.0,0.00021999,2]
[370568100,1752065236605,-500.0,0.00021999,2]
[370568101,1752065236632,-837.15380458,0.00021999,2]
[370568102,1752065236659,-837.15380458,0.00021999,2]
[370568103,1752065236684,-500.0,0.00021999,2]
[370568104,1752065236716,-837.15380458,0.00021999,2]
[370568105,1752065236743,-837.15380458,0.00021999,2]
[370568106,1752065236767,-650.0,0.00021999,2]
[370568107,1752065236797,-837.15380458,0.00021999,2]
[370568108,1752065236822,-1409.65898709,0.00021999,2]
[370568109,1752065236845,-5638.62301567,0.00022,2]
[370568110,1752065236868,-549.92328606,0.00022,2]
[370568111,1752065236891,-161.64912082,0.00022,2]
[370568112,1752065236913,-75946.22243653,0.00022,14]
[370568113,1752065236935,-58745.29,0.00022,7]
[370568114,1752065236959,-848.55005627,0.00022,7]
[370568115,1752065236982,-75817.56001825,0.00022,2]
[370568116,1752065237008,-151.0,0.00022,7]
[370568117,1752065237032,-151.0,0.00022,7]
[370568118,1752065237055,-152.844271,0.00022,7]
[370568119,1752065237079,-151.0,0.00022,7]
[370568120,1752065237102,-151.0,0.00022,7]
[370568121,1752065237125,-151.0,0.00022,7]
[370568122,1752065237149,-152.426959,0.00022,7]
[370568123,1752065237172,-151.0,0.00022,7]
[370568124,1752065237196,-151.0,0.00022,7]
[370568125,1752065237219,-151.0,0.00022,7]
[370568126,1752065237242,-7222.79,0.00022,7]
[370568127,1752065237263,-151.0,0.00022,7]
[370568128,1752065237285,-151.0,0.00022,7]
[370568129,1752065237307,-151.0,0.00022,7]
[370568130,1752065237329,-151.0,0.00022,7]
[370568131,1752065237350,-151.0,0.00022,7]
[370568132,1752065237373,-151.0,0.00022,7]
[370568133,1752065237396,-151.0,0.00022,7]
[370568134,1752065237418,-151.0,0.00022,7]
[370568135,1752065237439,-151.0,0.00022,7]
[370568136,1752065237460,-151.299347,0.00022,7]
[370568137,1752065237482,-151.0,0.00022,7]
[370568138,1752065237503,-151.365861,0.00022,7]
[370568139,1752065237523,-151.0,0.00022,7]
[370568140,1752065237724,-151.0,0.00022,7]
[370568141,1752065237745,-151.0,0.00022,7]
[370568142,1752065237765,-151.0,0.00022,7]
[370568143,1752065237787,-310.86882,0.00022,7]
[370568144,1752065237807,-310.86882,0.00022,7]
[370568145,1752065237827,-310.86882,0.00022,7]
[370568146,1752065237850,-310.86882,0.00022,7]
[370568147,1752065237871,-261.783266,0.00022,7]
[370568148,1752065237892,-261.783266,0.00022,7]
[370568149,1752065237914,-261.783266,0.00022,7]
[370568150,1752065237935,-261.783266,0.00022,7]
[370568151,1752065237956,-151.0,0.00022,7]
[370568152,1752065237977,-151.0,0.00022,7]
[370568153,1752065238000,-152.851372,0.00022,7]
[370568154,1752065238021,-151.0,0.00022,7]
[370568155,1752065238044,-151.0,0.00022,7]
[370568156,1752065238066,-151.0,0.00022,7]
[370568157,1752065238089,-151.474374,0.00022,7]
[370568158,1752065238111,-151.0,0.00022,7]
[370568159,1752065238134,-151.0,0.00022,7]
[370568160,1752065238156,-151.0,0.00022,7]
[370568161,1752065238178,-151.0,0.00022,7]
[370568162,1752065238199,-151.0,0.00022,7]
[370568163,1752065238219,-151.0,0.00022,7]
[370568164,1752065238241,-151.0,0.00022,7]
[370568165,1752065238263,-151.0,0.00022,7]
[370568166,1752065238287,-151.0,0.00022,7]
[370568167,1752065238310,-151.0,0.00022,7]
[370568168,1752065238332,-151.0,0.00022,7]
[370568169,1752065238354,-208.657194,0.00022,7]
[370568170,1752065238379,-151.0,0.00022,7]
[370568171,1752065238400,-151.0,0.00022,7]
[370568172,1752065238423,-151.0,0.00022,7]
[370568173,1752065238446,-151.0,0.00022,7]
[370568174,1752065238468,-151.46997,0.00022,7]
[370568175,1752065238492,-151.0,0.00022,7]
[370568176,1752065238514,-151.0,0.00022,7]
[370568177,1752065238537,-151.0,0.00022,7]
[370568178,1752065238558,-151.0,0.00022,7]
[370568179,1752065238580,-151.0,0.00022,7]
[370568180,1752065238602,-151.0,0.00022,7]
[370568181,1752065238624,-151.0,0.00022,7]
[370568182,1752065238646,-151.0,0.00022,7]
[370568183,1752065238666,-151.0,0.00022,7]
[370568184,1752065238688,-151.0,0.00022,7]
[370568185,1752065238709,-214.14293035,0.00022,7]
[370568186,1752065238729,-228.511178,0.00022,7]
[370568187,1752065238749,-228.511178,0.00022,7]
[370568188,1752065238775,-228.511178,0.00022,7]
[370568189,1752065238796,-228.511178,0.00022,7]
[370568190,1752065238817,-228.511178,0.00022,7]
[370568191,1752065238836,-228.511178,0.00022,7]
[370568192,1752065238857,-151.0,0.00022,7]
[370568193,1752065238878,-151.0,0.00022,7]
[370568194,1752065238897,-157.892261,0.00022,7]
[370568195,1752065238921,-4855.31525927,0.00022,2]
[370568196,1752065239027,-63860.00308147,0.00022,2]
[370568197,1752065245840,3000.0,0.0001678,2]
[370568198,1752065248205,3000.0,0.00017876,2]
[370568199,1752065253149,-3000.0,0.00018972,2]
[370568200,1752065253177,-1059.95,0.00019178,2]
[370568201,1752065253203,-1059.95,0.00019452,2]
[370568202,1752065253244,-1059.95,0.00019726,2]
[370568203,1752065253286,-2623.58,0.0002199,10]
[370568204,1752065253332,-2711.03,0.0002199,10]
[370568205,1752065253378,-10171.237766,0.00022,2]
[370568246,1752065432326,-300.0,0.00019177,2]
[370568247,1752065432336,-460.0,0.00019178,2]
[370568248,1752065432346,-460.0,0.00019178,2]
[370568249,1752065432356,-491.22418169,0.00019178,2]
[370568250,1752065432366,-460.12,0.00019178,2]
[370568251,1752065432375,-460.0,0.00019178,2]
[370568252,1752065432386,-460.0,0.00019178,2]
[370568253,1752065432395,-504.86,0.00019178,2]
[370568254,1752065432405,-460.0,0.00019178,2]
[370568255,1752065432414,-1079.02,0.00019178,2]
[370568256,1752065432424,-574.33070593,0.00019178,2]
[370568257,1752065432433,-460.0,0.00019178,2]
[370568259,1752065432443,-460.0,0.00019178,2]
[370568261,1752065432453,-460.0,0.00019178,2]
[370568263,1752065432463,-460.0,0.00019178,2]
[370568265,1752065432472,-460.0,0.00019178,2]
[370568267,1752065432482,-460.0,0.00019178,2]
[370568269,1752065432491,-460.0,0.00019452,2]
[370568271,1752065432503,-460.0,0.00019452,2]
[370568273,1752065432514,-409.86425229,0.00019452,2]
[370568275,1752065432526,-50.25574771,0.00019452,2]
[370568277,1752065432536,-504.86,0.00019452,2]
[370568279,1752065432545,-214.44290465,0.00019452,2]
[370568282,1752065432557,-245.55709535,0.00019452,2]
[370568283,1752065432566,-1079.02,0.00019452,2]
[370568286,1752065432576,-460.0,0.00019452,2]
[370568287,1752065432585,-375.01329414,0.00019452,2]
[370568297,1752065432762,-84.98670586,0.00019452,2]
[370568298,1752065432771,-460.0,0.00019452,2]
[370568299,1752065432781,-460.0,0.00019452,2]
[370568300,1752065432790,-460.0,0.00019452,2]
[370568301,1752065432799,-460.0,0.00019726,2]
[370568302,1752065432809,-460.0,0.00019726,2]
[370568303,1752065432819,-460.12,0.00019726,2]
[370568304,1752065432828,-504.86,0.00019726,2]
[370568305,1752065432838,-460.0,0.00019726,2]
[370568306,1752065432847,-1079.02,0.00019726,2]
[370568307,1752065432856,-460.0,0.00019726,2]
[370568308,1752065432865,-460.0,0.00019726,2]
[370568309,1752065432875,-460.0,0.00019726,2]
[370568310,1752065432884,-460.0,0.00019726,2]
[370568311,1752065432893,-460.0,0.00019726,2]
[370568312,1752065432903,-460.0,0.00019999,2]
[370568313,1752065432912,-1059.95,0.0002,2]
[370568314,1752065432921,-460.0,0.0002,2]
[370568315,1752065432930,-460.0,0.0002,2]
[370568316,1752065432940,-460.12,0.0002,2]
[370568317,1752065432950,-252.44271214,0.0002,2]
[370568318,1752065432990,-252.41728786,0.0002,2]
[370568319,1752065432999,-136.60150584,0.0002,2]
[370568320,1752065433286,-323.39849416,0.0002,2]
[370568321,1752065433295,-1079.02,0.0002,2]
[370568322,1752065433305,-460.0,0.0002,2]
[370568323,1752065433315,-235.86,0.0002,2]
[370568324,1752065433324,-460.0,0.0002,2]
[370568325,1752065433333,-460.0,0.0002,2]
[370568326,1752065433343,-460.0,0.0002,2]
[370568327,1752065433352,-3000.0,0.00020068,2]
[370568328,1752065433362,-215.27775528,0.0002026,2]
[370568329,1752065433372,-230.53906051,0.0002026,2]
[370568330,1752065433381,-214.14293035,0.0002026,2]
[370568331,1752065433391,-837.99933892,0.0002026,2]
[370568332,1752065433401,-160.0,0.0002026,2]
[370568333,1752065433411,-848.55005627,0.0002026,2]
[370568334,1752065433421,-1059.95,0.00020273,2]
[370568335,1752065433430,-460.0,0.00020273,2]
[370568336,1752065433440,-205.18275993,0.00020273,2]
[370568337,1752065433452,-254.81724007,0.00020273,2]
[370568338,1752065433461,-350.63275993,0.00020273,2]
[370568339,1752065433473,-109.48724007,0.00020273,2]
[370568340,1752065433483,-504.86,0.00020273,2]
[370568341,1752065433493,-460.0,0.00020273,2]
[370568342,1752065433506,-1079.02,0.00020273,2]
[370568343,1752065433516,-460.0,0.00020273,2]
[370568344,1752065433526,-460.0,0.00020273,2]
[370568345,1752065433535,-460.0,0.00020273,2]
[370568346,1752065433546,-460.0,0.00020273,2]
[370568347,1752065433556,-1059.95,0.00020547,2]
[370568348,1752065433566,-460.0,0.00020547,2]
[370568349,1752065433576,-460.0,0.00020547,2]
[370568350,1752065433586,-460.12,0.00020547,2]
[370568351,1752065433598,-372.01633133,0.00020547,2]
[370568352,1752065433611,-132.84366867,0.00020547,2]
[370568353,1752065433621,-460.0,0.00020547,2]
[370568354,1752065433630,-151.73985715,0.00020547,2]
[370568355,1752065433642,-481.84569023,0.00020547,2]
[370568356,1752065433654,-445.43445262,0.00020547,2]
[370568357,1752065433664,-312.1175498,0.00020547,2]
[370568358,1752065433676,-147.8824502,0.00020547,2]
[370568359,1752065433685,-460.0,0.00020547,2]
[370568360,1752065433694,-460.0,0.00020547,2]
[370568361,1752065433705,-244.05714757,0.00020547,2]
[370568459,1752065441371,-604.32,0.00019178,2]
[370568460,1752065441380,-460.0,0.00019999,2]
[370568461,1752065441389,-215.94285243,0.00020547,2]
[370568462,1752065441398,-1059.95,0.00020821,2]
[370568463,1752065441407,-460.0,0.00020821,2]
[370568464,1752065441416,-460.0,0.00020821,2]
[370568465,1752065441425,-460.12,0.00020821,2]
[370568466,1752065441434,-504.86,0.00020821,2]
[370568468,1752065441444,-460.0,0.00020821,2]
[370568469,1752065441453,-1079.02,0.00020821,2]
[370568471,1752065441463,-460.0,0.00020821,2]
[370568472,1752065441472,-460.0,0.00020821,2]
[370568474,1752065441482,-460.0,0.00020821,2]
[370568477,1752065441492,-460.0,0.00020821,2]
[370568478,1752065441503,-420.0,0.00020899,2]
[370568480,1752065441521,-1044.62728044,0.000209,4]
[370568482,1752065441531,-1044.62728042,0.00021072,4]
[370568484,1752065441540,-1059.95,0.00021095,2]
[370568486,1752065441550,-460.0,0.00021095,2]
[370568488,1752065441559,-460.0,0.00021095,2]
[370568490,1752065441569,-460.12,0.00021095,2]
[370568492,1752065441579,-504.86,0.00021095,2]
[370568494,1752065441588,-460.0,0.00021095,2]
[370568495,1752065441598,-1079.02,0.00021095,2]
[370568498,1752065441607,-460.0,0.00021095,2]
[370568499,1752065441617,-460.0,0.00021095,2]
[370568501,1752065441626,-460.0,0.00021095,2]
[370568503,1752065441636,-460.0,0.00021095,2]
[370568505,1752065441645,-3000.0,0.00021164,2]
[370568507,1752065441655,-9183.2624,0.00021244,4]
[370568509,1752065441665,-1044.62728042,0.00021245,4]
[370568511,1752065441675,-1059.95,0.00021369,2]
[370568513,1752065441684,-460.0,0.00021369,2]
[370568515,1752065441693,-460.0,0.00021369,2]
[370568517,1752065441703,-460.12,0.00021369,2]
[370568519,1752065441712,-504.86,0.00021369,2]
[370568521,1752065441722,-460.0,0.00021369,2]
[370568523,1752065441732,-1079.02,0.00021369,2]
[370568525,1752065441741,-460.0,0.00021369,2]
[370568527,1752065441751,-294.63709029,0.00021369,2]
[370568530,1752065441767,-604.32,0.00019452,2]
[370568532,1752065441776,-165.36290971,0.00021369,2]
[370568534,1752065441785,-460.0,0.00021369,2]
[370568536,1752065441795,-460.0,0.00021369,2]
[370568538,1752065441804,-500.0,0.00021371,2]
[370568540,1752065441814,-1044.62728042,0.00021417,5]
[370568542,1752065441823,-1044.62728042,0.0002159,5]
[370568543,1752065441833,-1059.95,0.00021643,2]
[370568545,1752065441842,-15.13252945,0.00021643,2]
[370568548,1752065441854,-444.86747055,0.00021643,2]
[370568550,1752065441863,-460.0,0.00021643,2]
[370568552,1752065441873,-460.12,0.00021643,2]
[370568554,1752065441883,-504.86,0.00021643,2]
[370568555,1752065441892,-460.0,0.00021643,2]
[370568557,1752065441901,-1079.02,0.00021643,2]
[370568559,1752065441911,-460.0,0.00021643,2]
[370568561,1752065441920,-460.0,0.00021643,2]
[370568563,1752065441929,-460.0,0.00021643,2]
[370568565,1752065441938,-460.0,0.00021643,2]
[370568567,1752065441948,-1044.62728042,0.00021762,5]
[370568569,1752065441957,-207.4,0.00021904,2]
[370568571,1752065441966,-1059.95,0.00021917,2]
[370568573,1752065441977,-460.0,0.00021917,2]
[370568575,1752065441987,-460.0,0.00021917,2]
[370568577,1752065441996,-162.808561,0.00021917,4]
[370568578,1752065442005,-460.12,0.00021917,2]
[370568580,1752065442014,-504.86,0.00021917,2]
[370568582,1752065442023,-460.0,0.00021917,2]
[370568584,1752065442033,-1079.02,0.00021917,2]
[370568586,1752065442042,-460.0,0.00021917,2]
[370568588,1752065442051,-460.0,0.00021917,2]
[370568590,1752065442060,-460.0,0.00021917,2]
[370568592,1752065442070,-460.0,0.00021917,2]
[370568594,1752065442079,-150.10871217,0.00021918,2]
[370568596,1752065442088,-1034.73,0.00021919,2]
[370568598,1752065442097,-1044.62728042,0.00021934,6]
[370568600,1752065442106,-2259.19,0.0002199,10]
[370568602,1752065442115,-1882.66,0.0002199,10]
[370568604,1752065442124,-33852.03389326,0.00022,2]
[370568606,1752065442133,-151.0,0.00022,7]
[370568607,1752065442143,-151.0,0.00022,7]
[370568609,1752065442152,-151.0,0.00022,7]
[370568611,1752065442161,-151.0,0.00022,7]
[370568613,1752065442170,-151.0,0.00022,7]
[370568615,1752065442179,-151.0,0.00022,7]
[370568617,1752065442188,-151.0,0.00022,7]
[370568619,1752065442197,-151.0,0.00022,7]
[370568621,1752065442207,-151.0,0.00022,7]
[370568623,1752065442215,-151.0,0.00022,7]
[370568625,1752065442225,-151.0,0.00022,7]
[370568627,1752065442235,-151.0,0.00022,7]
[370568629,1752065442244,-151.0,0.00022,7]
[370568631,1752065442252,-152.854533,0.00022,7]
[370568632,1752065442262,-151.0,0.00022,7]
[370568634,1752065442271,-151.0,0.00022,7]
[370568636,1752065442280,-153.996971,0.00022,7]
[370568638,1752065442289,-151.0,0.00022,7]
[370568640,1752065442299,-151.0,0.00022,7]
[370568642,1752065442308,-151.0,0.00022,7]
[370568644,1752065442317,-151.0,0.00022,7]
[370568646,1752065442326,-228.29306,0.00022,7]
[370568648,1752065442335,-151.0,0.00022,7]
[370568650,1752065442345,-151.0,0.00022,7]
[370568652,1752065442354,-151.0,0.00022,7]
[370568654,1752065442364,-151.0,0.00022,7]
[370568656,1752065442373,-151.0,0.00022,7]
[370568658,1752065442383,-151.0,0.00022,7]
[370568660,1752065442392,-290.191952,0.00022,2]
[370568662,1752065442401,-290.191952,0.00022,2]
[370568664,1752065442410,-290.191952,0.00022,2]
[370568665,1752065442419,-290.191952,0.00022,2]
[370568667,1752065442428,-290.191952,0.00022,2]
[370568669,1752065442438,-290.191952,0.00022,2]
[370568671,1752065442447,-151.352149,0.00022,7]
[370568673,1752065442456,-151.0,0.00022,7]
[370568675,1752065442466,-151.0,0.00022,7]
[370568677,1752065442476,-151.0,0.00022,7]
[370568679,1752065442487,-151.0,0.00022,7]
[370568681,1752065442496,-151.0,0.00022,7]
[370568682,1752065442508,-151.0,0.00022,7]
[370568684,1752065442517,-151.0,0.00022,7]
[370568686,1752065442527,-151.0,0.00022,7]
[370568688,1752065442536,-151.0,0.00022,7]
[370568690,1752065442545,-267.825352,0.00022,7]
[370568692,1752065442555,-151.0,0.00022,7]
[370568694,1752065442564,-164.792814,0.00022,7]
[370568696,1752065442573,-331.301525,0.00022,7]
[370568698,1752065442586,-331.301525,0.00022,7]
[370568700,1752065442596,-331.301525,0.00022,7]
[370568702,1752065442605,-331.301525,0.00022,7]
[370568704,1752065442615,-331.301525,0.00022,7]
[370568706,1752065442625,-331.301525,0.00022,7]
[370568708,1752065442634,-151.0,0.00022,7]
[370568710,1752065442643,-151.0,0.00022,7]
[370568711,1752065442653,-33.85478949,0.00022,7]